bitfinex/quotes_ETHUSD_20241119
["timestamp","ask_amount","ask_price","bid_price","bid_amount"]
[1732025229952,3.57688868,3087.6,3086.9,3.23949]
[1732025230159,8.91,3087.9,3086.4,3.23994]
[1732025230353,3.2395,3086.9,3086.2,1.5853]
[1732025230557,3.23977,3086.7,3086.0,3.24037]
[1732025230800,3.2395,3086.9,3086.0,3.24038]
[1732025231123,3.2395,3086.9,3085.8,4.5187]
[1732025231124,1.6382,3087.1,3085.8,1.5187]
[1732025231125,3.24005,3086.4,3085.8,1.5187]
[1732025231261,1.6382,3087.1,3085.2,4.26124663]
[1732025231262,3.23998,3086.5,3085.7,3.24074]
[1732025231567,1.6382,3087.1,3086.2,4.26124663]
[1732025231767,8.91,3087.4,3086.7,3.23966]
[1732025231994,8.91,3087.4,3086.5,3.23989]
[1732025231995,3.23915,3087.3,3086.5,3.23985]
[1732025232204,3.23969,3086.8,3086.1,3.24029]
[1732025232405,12.14903,3087.4,3085.9,1.6141]
[1732025232406,3.23939,3087.0,3085.9,1.6141]
[1732025232617,3.2401,3086.4,3085.7,3.24074]
[1732025232823,4.86603,3086.9,3086.1,3.24031]
[1732025233117,1.5619,3087.4,3086.9,3.23944]
[1732025233321,12.14868,3087.7,3086.9,3.23944]
[1732025233322,8.91,3087.6,3086.9,3.23944]
[1732025233623,3.57650275,3088.0,3087.7,3.23861]
[1732025233624,8.91,3087.9,3087.7,3.23861]
[1732025233833,0.33809275,3088.0,3087.3,1.5748]
[1732025233834,0.33809275,3088.0,3087.6,3.23868]
[1732025234016,0.33809275,3088.0,3087.4,3.23894]
[1732025234214,8.91,3088.5,3088.0,3.23826]
[1732025234727,8.91,3088.5,3087.6,3.23874]
[1732025234728,3.2381,3088.3,3087.6,3.23874]
[1732025234973,12.14782,3088.5,3087.7,3.23863]
[1732025235233,12.14782,3088.5,3087.3,1.5748]
[1732025235234,3.23809,3088.3,3087.5,3.23878]
[1732025235436,3.2381,3088.3,3087.5,3.23878]
[1732025235578,12.14784,3088.5,3087.5,3.23882]
[1732025235781,3.23856,3087.8,3086.9,3.23942]
[1732025236025,8.91,3087.8,3086.9,3.23942]
[1732025236322,3.23909,3087.3,3086.8,1.6359]
[1732025236621,8.91,3087.8,3086.9,3.23949]
[1732025236782,8.91,3087.8,3086.8,1.6359]
[1732025236983,8.91,3087.8,3086.2,4.26124663]
[1732025236984,3.23916,3087.3,3086.4,4.80659]
[1732025237290,3.23868,3087.7,3087.0,3.23929]
[1732025237526,8.91,3087.8,3087.0,3.23929]
[1732025237527,3.23877,3087.6,3087.0,3.23929]
[1732025237697,8.91,3087.8,3086.5,3.23986]
[1732025237905,8.91,3087.8,3087.5,3.23885]
[1732025238212,8.91,3087.8,3086.6,0.481646]
[1732025238213,8.91,3087.8,3087.4,3.23889]
[1732025238434,8.91,3087.8,3087.4,3.23894]
[1732025238579,8.91,3087.8,3086.9,1.6424]
[1732025238580,3.23883,3087.6,3086.9,1.6424]
[1732025238779,3.23883,3087.6,3086.9,4.88179]
[1732025239081,3.23883,3087.6,3087.1,3.23926]
[1732025239082,1.5662,3087.6,3087.1,3.23926]
[1732025239280,0.323883,3087.5,3086.7,3.2397]
[1732025239524,3.23903,3087.4,3086.7,3.2397]
[1732025239684,8.91,3087.5,3086.9,3.23941]
[1732025239884,8.91,3087.5,3086.8,3.23958]
[1732025240146,3.23817,3088.2,3087.2,3.23918]
[1732025240147,8.91,3088.2,3087.2,3.23918]
[1732025240385,3.23796,3088.4,3087.3,3.23907]
[1732025240697,3.23796,3088.4,3087.2,0.481388]
[1732025240698,3.2381,3088.3,3087.6,3.23872]
[1732025240859,8.91,3088.3,3087.7,3.23864]
[1732025241203,3.23874,3087.7,3087.1,1.5747]
[1732025241406,3.23916,3087.3,3086.7,1.6643]
[1732025241696,1.5325,3087.7,3086.7,4.90396]
[1732025241857,3.23895,3087.5,3086.7,4.90396]
[1732025242059,0.55,3087.3,3085.8,1.5041]
[1732025242357,0.55,3087.6,3086.0,3.24043]
[1732025242358,3.23967,3086.8,3086.0,3.24043]
[1732025242574,3.24003,3086.4,3085.8,1.5041]
[1732025242770,3.23985,3086.6,3085.8,1.5041]
[1732025242979,0.05764487,3086.3,3086.2,3.24021]
[1732025243195,8.91,3086.9,3086.8,3.2396]
[1732025243358,3.2388,3087.6,3086.8,3.2396]
[1732025243689,6.23795,3088.4,3087.3,3.23905]
[1732025243690,12.14852,3087.9,3087.3,3.23905]
[1732025243895,8.91,3087.9,3086.7,3.2397]
[1732025244076,3.23882,3087.6,3086.9,3.23947]
[1732025244278,3.23855,3087.8,3087.1,3.23927]
[1732025244465,8.91,3087.9,3086.6,1.6156]
[1732025244799,3.23859,3087.8,3087.1,3.23927]
[1732025245001,3.23859,3087.8,3087.1,3.2392]
[1732025245155,8.91,3087.9,3087.5,3.23884]
[1732025245349,1.5171,3088.3,3086.7,4.26124663]
[1732025245350,1.5171,3088.3,3087.4,1.5052]
[1732025245585,3.23816,3088.2,3087.6,3.23866]
[1732025245792,3.23804,3088.3,3087.7,3.23857]
[1732025246157,3.23813,3088.2,3087.5,3.23878]
[1732025246354,0.1417608,3088.7,3087.3,3.23899]
[1732025246355,3.23837,3088.0,3087.3,3.23899]
[1732025246574,12.4860777,3088.6,3086.9,3.23943]
[1732025246575,1.5899,3087.9,3086.9,3.23943]
[1732025246903,1.5899,3087.9,3086.4,3.0]
[1732025246904,3.2391,3087.3,3086.4,1.6062]
[1732025247068,3.2391,3087.3,3086.5,3.23984]
[1732025247269,3.23963,3086.8,3086.4,1.6062]
[1732025247611,3.23965,3086.8,3086.2,3.24022]
[1732025247905,1.6409,3087.0,3086.2,3.24015]
[1732025248060,3.23941,3087.0,3086.4,3.23994]
[1732025248400,1.6409,3087.4,3085.9,1.5814]
[1732025248401,3.23908,3087.3,3086.7,3.23961]
[1732025248606,3.2394,3087.0,3086.5,3.23991]
[1732025248987,3.23918,3087.2,3086.5,3.23988]
[1732025249763,3.23918,3087.2,3086.3,3.24007]
[1732025249764,3.2394,3087.0,3086.3,3.24002]
[1732025250063,3.23961,3086.8,3086.3,3.24002]
[1732025250270,3.23961,3086.8,3086.2,3.24021]
[1732025250469,3.23961,3086.8,3086.1,3.24023]
[1732025250689,3.23976,3086.7,3086.0,3.24035]
[1732025250895,8.91,3087.0,3085.9,1.5814]
[1732025251064,8.91,3087.0,3084.7,0.02]
[1732025251065,0.55,3086.4,3085.5,1.6559]
[1732025251281,3.24034,3086.1,3085.5,1.6559]
[1732025251486,8.91,3086.4,3085.5,1.6559]
[1732025251928,4.88965,3086.6,3084.7,4.26124663]
[1732025251929,3.24087,3085.6,3085.1,1.5348]
[1732025252070,0.55,3086.2,3084.6,4.77665]
[1732025252071,3.24128,3085.2,3084.6,4.77665]
[1732025252269,8.91,3085.5,3084.6,4.77665]
[1732025252508,3.2411,3085.4,3084.8,3.24169]
[1732025252711,8.91,3085.5,3085.4,3.24107]
[1732025252871,3.24024,3086.2,3085.4,5.106607]
[1732025253067,12.15005,3086.4,3085.8,3.24064]
[1732025253270,1.5559,3086.6,3085.9,3.24045]
[1732025253271,8.91,3086.5,3085.9,3.24045]
[1732025253505,8.91,3087.1,3086.0,1.5415]
[1732025253711,3.23945,3087.0,3086.3,3.24006]
[1732025253936,3.23945,3087.0,3086.2,3.24023]
[1732025253937,4.79495,3087.4,3086.7,3.23962]
[1732025254133,1.5559,3087.4,3086.3,3.24009]
[1732025254335,1.5559,3087.4,3086.7,3.23962]
[1732025254336,3.23907,3087.4,3086.7,3.23962]
[1732025254543,3.23907,3087.4,3086.5,3.23982]
[1732025254544,3.23926,3087.2,3086.5,3.23982]
[1732025254710,3.23876,3087.6,3086.7,3.23963]
[1732025254901,12.14861,3087.8,3087.2,3.23911]
[1732025255101,1.5559,3087.9,3087.4,3.23894]
[1732025255297,3.23839,3088.0,3087.2,4.86199]
[1732025255518,12.14839,3088.0,3087.2,4.86199]
[1732025255725,3.23839,3088.0,3087.4,3.23895]
[1732025255907,3.23839,3088.0,3087.2,4.86199]
[1732025256247,3.23847,3087.9,3087.3,3.23907]
[1732025256398,3.23847,3087.9,3087.2,4.86199]
[1732025256399,3.23846,3087.9,3087.4,3.23889]
[1732025256927,12.14822,3088.2,3087.5,3.23885]
[1732025256928,8.91,3088.2,3087.5,3.23885]
[1732025257239,1.8015608,3088.7,3087.5,3.23877]
[1732025257240,12.14776,3088.6,3087.5,3.23877]
[1732025257438,12.14776,3088.6,3087.3,0.486213]
[1732025257439,0.05757678,3088.1,3087.7,3.23855]
[1732025257597,3.23795,3088.4,3087.3,0.486213]
[1732025257798,8.91,3088.5,3087.3,3.23906]
[1732025257799,0.05765462,3088.3,3087.3,3.23906]
[1732025257999,3.23842,3088.0,3087.4,3.23896]
[1732025258206,0.0576838,3087.9,3087.4,3.23889]
[1732025258440,8.91,3088.1,3087.5,3.23881]
[1732025258604,0.05771296,3088.0,3087.5,3.23881]
[1732025258828,0.05771296,3088.0,3087.9,3.23844]
[1732025259009,1.8015608,3088.7,3087.9,2.270599]
[1732025259010,0.1417608,3088.7,3087.9,2.270599]
[1732025259211,0.05771296,3088.6,3087.9,1.6229]
[1732025259416,3.23799,3088.4,3087.6,3.23871]
[1732025259626,0.0577112,3088.3,3087.6,3.23871]
[1732025259824,3.23832,3088.1,3087.5,4.89856]
[1732025260103,1.6548,3088.3,3087.6,3.23869]
[1732025260225,0.0577112,3088.0,3087.8,3.23846]
[1732025260524,9.08125112,3088.3,3087.9,3.23844]
[1732025260761,0.0577271,3087.9,3087.7,3.23862]
[1732025261069,0.0577271,3087.8,3087.7,3.23862]
[1732025261217,8.91,3088.3,3087.9,3.23839]
[1732025261551,8.91,3088.3,3087.9,3.23837]
[1732025261552,0.0577271,3088.2,3087.9,3.23837]
[1732025261757,0.0577271,3088.2,3088.1,3.23823]
[1732025262061,0.1417608,3088.7,3088.6,4.74721]
[1732025262253,0.1417608,3088.7,3088.6,7.74721]
[1732025262813,0.1417608,3088.7,3088.6,4.74721]
[1732025263253,0.1417608,3088.7,3088.1,3.0]
[1732025263254,0.19951,3088.7,3088.1,3.0]
[1732025263453,0.19951,3088.7,3088.2,3.23812]
[1732025263656,0.19951,3088.7,3088.3,3.23795]
[1732025263863,0.19951,3088.7,3088.0,1.6215]
[1732025264021,0.19951,3088.7,3088.6,4.88941]
[1732025264022,0.1417608,3088.7,3088.6,4.88941]
[1732025264221,0.1417608,3088.7,3088.6,7.88941]
[1732025265144,9.24813043,3090.3,3088.8,3.0]
[1732025265344,0.33813043,3090.3,3089.8,3.23643]
[1732025265544,0.33813043,3090.3,3089.7,3.23655]
[1732025265545,0.0559107,3090.2,3089.7,3.23655]
[1732025265980,0.0559107,3090.2,3089.6,1.5283]
[1732025265981,3.23593,3090.3,3089.6,4.76496]
[1732025266121,0.05606356,3090.1,3089.7,3.23653]
[1732025266337,3.23579,3090.5,3089.7,3.23653]
[1732025266544,0.05613597,3090.0,3089.7,3.23653]
[1732025266792,3.23573,3090.5,3089.9,3.23633]
[1732025266974,8.91,3090.6,3089.9,3.23633]
[1732025267177,0.63620581,3090.9,3090.2,3.23595]
[1732025267494,1.5104,3091.1,3089.6,1.5283]
[1732025267495,3.23585,3090.4,3089.8,3.23637]
[1732025267643,3.23585,3090.4,3089.6,1.5283]
[1732025267840,0.01,3091.5,3089.6,1.5283]
[1732025267841,3.23617,3090.1,3089.6,1.5283]
[1732025268045,4.86063,3090.3,3089.2,1.613]
[1732025268046,3.23631,3090.0,3089.2,1.613]
[1732025268266,3.23603,3090.2,3089.3,3.23688]
[1732025268472,3.23689,3089.4,3089.2,1.613]
[1732025268655,3.23669,3089.6,3088.9,4.85029]
[1732025268993,3.23701,3089.3,3088.5,4.88387]
[1732025269291,0.55,3089.3,3087.8,1.6461]
[1732025269444,3.23748,3088.9,3088.1,3.23815]
[1732025269647,9.46,3089.3,3087.9,3.23841]
[1732025269847,3.2376,3088.8,3088.1,3.23818]
[1732025270129,3.2376,3088.8,3088.0,3.23825]
[1732025270130,3.23765,3088.7,3088.0,3.23825]
[1732025270308,12.69702,3089.3,3088.4,3.23791]
[1732025270309,3.23727,3089.1,3088.4,3.23791]
[1732025270463,3.23727,3089.1,3087.6,4.26124663]
[1732025270464,3.23711,3089.2,3088.6,3.23762]
[1732025270649,3.2369,3089.4,3088.8,3.23744]
[1732025270850,3.23695,3089.4,3088.8,3.23744]
[1732025271094,12.14669,3089.6,3089.0,3.2372]
[1732025271294,12.14669,3089.6,3089.1,3.23711]
[1732025271295,8.91,3089.6,3089.1,3.23711]
[1732025271602,3.2365,3089.8,3089.0,3.23722]
[1732025271603,3.23659,3089.7,3089.0,3.23722]
[1732025271797,3.2365,3089.8,3089.2,3.23706]
[1732025271950,3.2365,3089.8,3089.0,3.23722]
[1732025272152,3.23715,3089.2,3088.4,6.23789]
[1732025272456,1.5612,3089.9,3088.6,3.0]
[1732025272457,0.0560609,3089.1,3088.6,3.0]
[1732025272670,8.91,3089.8,3088.5,3.23781]
[1732025272671,3.23716,3089.2,3088.5,3.23781]
[1732025272871,3.23716,3089.2,3088.7,3.23759]
[1732025272872,0.05605914,3089.0,3088.7,3.23759]
[1732025273087,3.23692,3089.4,3088.7,3.23759]
[1732025273260,0.05610947,3088.9,3088.7,3.885126]
[1732025273463,1.5612,3089.9,3088.4,3.0]
[1732025273464,3.23661,3089.7,3088.9,1.5538]
[1732025273771,3.2368,3089.5,3088.9,1.5538]
[1732025274008,3.23626,3090.0,3089.0,3.0]
[1732025274167,3.23645,3089.8,3089.3,3.0]
[1732025274372,3.23626,3090.0,3089.3,3.0]
[1732025274570,3.23698,3089.3,3088.9,1.5538]
[1732025275176,3.23675,3089.6,3088.9,1.5538]
[1732025275374,3.23694,3089.4,3088.9,1.5538]
[1732025275696,3.23694,3089.4,3088.5,3.23777]
[1732025275697,3.23694,3089.4,3088.6,6.23768]
[1732025276180,3.2371,3089.2,3088.6,6.23768]
[1732025276383,10.22435652,3090.2,3089.6,1.5161]
[1732025276571,3.29454739,3090.6,3089.6,1.5001]
[1732025276572,3.23621,3090.1,3089.6,1.5001]
[1732025276770,3.2361,3090.2,3089.6,3.23665]
[1732025277293,10.5761,3090.3,3089.8,3.23643]
[1732025277626,12.14601,3090.3,3089.6,3.23659]
[1732025277802,12.14601,3090.3,3089.1,3.23717]
[1732025277803,3.23622,3090.1,3089.4,3.23681]
[1732025277977,12.14601,3090.3,3089.6,3.2366]
[1732025278177,12.14601,3090.3,3089.7,3.23654]
[1732025278520,8.91,3090.5,3090.0,3.23621]
[1732025278676,8.91,3090.5,3090.0,3.23615]
[1732025278892,8.91,3090.5,3090.1,3.23611]
[1732025279222,8.91,3090.5,3090.0,3.23615]
[1732025279386,3.23546,3090.8,3090.0,3.23615]
[1732025279387,3.2355,3090.8,3090.0,3.23623]
[1732025279594,3.23563,3090.6,3090.0,3.23623]
[1732025279769,1.6036,3090.9,3089.8,3.23644]
[1732025279972,3.23568,3090.6,3090.0,3.23623]
[1732025280211,3.23568,3090.6,3089.8,3.23644]
[1732025280212,3.23568,3090.6,3089.8,3.23636]
[1732025280419,3.23611,3090.2,3089.5,3.23669]
[1732025280601,3.23611,3090.2,3089.5,3.23667]
[1732025280602,1.6562,3090.1,3089.5,3.23667]
[1732025280803,0.55,3090.2,3089.2,3.0]
[1732025281007,0.55,3090.2,3089.3,3.23697]
[1732025281008,3.2362,3090.1,3089.3,3.23697]
[1732025281187,3.23615,3090.1,3089.4,3.23678]
[1732025281370,3.2362,3090.1,3089.2,3.23708]
[1732025281574,3.2362,3090.1,3089.1,3.0]
[1732025281575,8.91,3090.3,3089.1,3.0]
[1732025281814,8.91,3090.3,3089.2,3.0]
[1732025282002,0.66136512,3091.0,3090.2,3.23603]
[1732025282003,1.5778,3090.8,3090.2,3.23603]
[1732025282331,8.91,3091.0,3090.6,1.6144]
[1732025282472,8.91,3091.0,3090.6,4.85]
[1732025282678,8.91,3091.0,3090.6,3.2356]
[1732025282908,8.91,3091.0,3090.7,3.2355]
[1732025283175,0.1417608,3091.8,3090.8,3.23534]
[1732025283176,3.23484,3091.4,3090.8,3.23534]
[1732025283422,12.14458,3091.6,3090.2,4.85039]
[1732025283423,8.91,3091.6,3090.2,1.6144]
[1732025283588,3.23527,3091.0,3090.4,3.23579]
[1732025283789,3.23527,3091.0,3090.3,3.23583]
[1732025284229,3.23502,3091.2,3090.3,3.23585]
[1732025284387,3.23502,3091.2,3090.5,3.23569]
[1732025284388,3.2351,3091.1,3090.5,3.23569]
[1732025284712,1.6033,3091.5,3090.7,3.23545]
[1732025284713,0.55,3091.3,3090.7,3.23545]
[1732025284940,0.55,3091.4,3090.4,3.23573]
[1732025285076,0.55,3091.4,3090.2,1.6144]
[1732025285077,7.0197,3091.4,3090.7,3.23544]
[1732025285323,3.78482,3091.4,3090.7,3.23544]
[1732025285576,3.78482,3091.4,3090.2,4.8504]
[1732025285577,3.78482,3091.4,3090.8,3.23537]
[1732025285941,0.55,3091.4,3090.8,3.23537]
[1732025286250,1.6033,3091.5,3090.9,3.23524]
[1732025286451,13.74804,3091.5,3090.8,6.47064]
[1732025286636,10.5133,3091.5,3090.8,3.23532]
[1732025286837,10.5133,3091.5,3091.2,3.23491]
[1732025287139,10.5133,3091.5,3090.2,4.6144]
[1732025287140,3.23466,3091.6,3090.9,3.23527]
[1732025287437,3.23478,3091.4,3090.9,3.23527]
[1732025287640,8.91,3091.7,3090.5,3.23567]
[1732025287846,3.2351,3091.1,3090.6,3.0]
[1732025288049,3.28552254,3091.6,3090.2,1.6144]
[1732025288050,3.23559,3090.7,3090.2,1.6144]
[1732025288476,3.23593,3090.3,3089.8,1.6253]
[1732025288769,3.23574,3090.5,3089.9,3.23626]
[1732025288770,3.23589,3090.4,3089.9,3.23626]
[1732025289068,8.91,3091.2,3089.9,3.23626]
[1732025289069,1.5923,3091.0,3089.9,3.722396]
[1732025289371,3.23514,3091.1,3090.4,3.23578]
[1732025289580,3.23514,3091.1,3089.9,3.722396]
[1732025289581,8.91,3091.2,3090.6,3.23555]
[1732025289743,3.23495,3091.3,3090.6,4.76145]
[1732025290067,3.23478,3091.4,3090.6,1.5259]
[1732025290225,3.23478,3091.4,3090.7,3.23551]
[1732025290423,3.23525,3091.0,3090.6,1.5259]
[1732025290743,3.2352,3091.0,3090.5,3.0]
[1732025291066,3.23505,3091.2,3090.5,3.23569]
[1732025291282,3.23512,3091.1,3090.5,3.23569]
[1732025291565,3.23487,3091.4,3090.9,3.23528]
[1732025291770,16.93164,3091.6,3090.9,6.47048]
[1732025291932,10.4624,3091.6,3091.0,3.23519]
[1732025292126,10.4624,3091.6,3091.2,3.23492]
[1732025292127,8.91,3091.6,3091.2,3.23492]
[1732025292355,12.1446,3091.6,3091.1,3.23508]
[1732025292571,8.91,3091.6,3091.1,3.23508]
[1732025292727,8.91,3091.6,3091.0,3.558698]
[1732025292931,8.91,3091.6,3091.2,3.23495]
[1732025293131,8.91,3091.6,3091.0,3.23513]
[1732025293363,12.14459,3091.6,3091.0,3.23513]
[1732025293565,12.14459,3091.6,3091.1,3.23508]
[1732025293930,8.91,3091.6,3091.0,3.23513]
[1732025294128,8.91,3091.6,3091.0,3.558653]
[1732025294371,8.91,3091.6,3091.2,3.23491]
[1732025294859,0.1417608,3091.8,3091.7,6.23446]
[1732025295184,0.1417608,3091.8,3091.7,7.77306]
[1732025295331,0.1417608,3091.8,3091.7,7.78306]
[1732025295528,0.1417608,3091.8,3091.7,7.77306]
[1732025296244,0.1417608,3091.8,3091.7,1.5386]
[1732025296500,0.18789339,3091.8,3091.7,7.77306]
[1732025296847,0.18789339,3091.8,3091.7,1.5386]
[1732025297051,0.18789339,3091.8,3091.4,3.03281804]
[1732025297354,0.1417608,3091.8,3091.2,4.5072]
[1732025297546,0.04613259,3091.7,3091.6,3.23457]
[1732025297760,0.1417608,3091.8,3091.7,3.23446]
[1732025297968,0.1417608,3091.8,3091.7,6.23446]
[1732025298192,0.1417608,3091.8,3091.7,8.820063]
[1732025298873,0.1417608,3091.8,3091.7,4.6387]
[1732025299080,0.1417608,3091.8,3091.5,3.0]
[1732025299454,0.1417608,3091.8,3091.5,6.23458]
[1732025299650,0.1417608,3091.8,3091.3,1.5876]
[1732025299855,0.1417608,3091.8,3090.4,3.720029]
[1732025299856,0.1417608,3091.8,3091.1,3.23508]
[1732025300156,3.23453,3091.7,3090.9,3.23526]
[1732025300490,3.23453,3091.7,3091.1,3.235]
[1732025300691,0.1417608,3091.8,3091.4,3.23471]
[1732025301005,0.1417608,3091.8,3091.5,1.6488]
[1732025301159,0.1417608,3091.8,3091.2,3.0]
[1732025301359,0.1417608,3091.8,3091.5,3.2346]
[1732025301691,0.1417608,3091.8,3091.7,6.23446]
[1732025303351,0.18788986,3091.8,3091.7,6.23446]
[1732025303557,0.1417608,3091.8,3091.7,7.3326]
[1732025304316,0.1417608,3091.8,3091.7,4.09814]
[1732025304612,0.18788986,3091.8,3091.7,7.3326]
[1732025304913,0.18788986,3091.8,3091.7,4.09814]
[1732025305083,0.18788986,3091.8,3091.7,6.23446]
[1732025305084,0.1417608,3091.8,3091.7,6.23446]
[1732025305405,0.1417608,3091.8,3091.4,3.0]
[1732025305406,0.18788986,3091.8,3091.4,3.0]
[1732025305608,0.18788986,3091.8,3091.6,3.23457]
[1732025305769,0.1417608,3091.8,3091.7,3.23446]
[1732025306601,0.1417608,3091.8,3091.7,7.83780755]
[1732025306806,0.1417608,3091.8,3091.7,7.81306]
[1732025306962,0.1417608,3091.8,3091.7,8.917823]
[1732025308209,0.1417608,3091.8,3091.7,9.467823]
[1732025308700,0.1417608,3091.8,3091.7,8.917823]
[1732025309064,0.1417608,3091.8,3091.7,1.5786]
[1732025309301,0.1417608,3091.8,3091.7,7.81306]
[1732025309302,0.18794486,3091.8,3091.7,7.81306]
[1732025309859,0.1417608,3091.8,3091.7,7.81306]
[1732025310467,0.18794309,3091.8,3091.7,7.81306]
[1732025310702,0.18794309,3091.8,3091.7,9.24128]
[1732025310703,0.1417608,3091.8,3091.7,9.24128]
[1732025312281,0.1417608,3091.8,3091.7,9.25128]
[1732025312463,0.1417608,3091.8,3091.7,9.80128]
[1732025313719,0.1417608,3091.8,3091.7,9.24128]
[1732025316283,0.1417608,3091.8,3091.7,9.80128]
[1732025316713,8e-07,3091.8,3091.7,13.41417341]
[1732025317010,4.78169,3093.8,3093.2,3.23288]
[1732025317181,1.5494,3093.8,3093.3,3.23276]
[1732025317375,1.31925227,3094.4,3093.2,1.5201]
[1732025317376,0.04626657,3093.7,3093.2,1.5201]
[1732025317572,0.04626657,3093.7,3093.6,3.23247]
[1732025317847,1.6664,3094.1,3093.7,3.23233]
[1732025318480,1.6664,3094.1,3093.5,6.46507]
[1732025318678,3.23222,3093.9,3093.2,7.75293]
[1732025318876,4.89843,3094.1,3093.5,3.0]
[1732025319306,1.6664,3094.1,3093.5,3.0]
[1732025319482,3.23207,3094.0,3093.5,3.0]
[1732025319821,1.6664,3094.1,3093.5,3.0]
[1732025319822,1.6664,3094.1,3093.5,6.23252]
[1732025319978,1.6664,3094.1,3092.8,1.5555]
[1732025320179,3.23234,3093.8,3093.1,3.23294]
[1732025320376,3.23234,3093.8,3093.2,6.23283]
[1732025320594,3.23218,3093.9,3093.3,3.23278]
[1732025320779,4.8984,3094.1,3093.3,3.23278]
[1732025320997,1.6664,3094.1,3093.5,3.23249]
[1732025321226,1.6664,3094.1,3093.6,3.23247]
[1732025321518,4.89836,3094.1,3093.5,3.0]
[1732025321816,4.89836,3094.1,3093.5,6.23258]
[1732025322023,1.6664,3094.1,3093.6,3.23246]
[1732025322219,1.6664,3094.1,3093.5,3.0]
[1732025322410,1.6664,3094.1,3093.6,3.23246]
[1732025322768,3.23166,3094.4,3093.6,3.2324]
[1732025322928,3.23188,3094.2,3093.6,3.2324]
[1732025323083,3.23206,3094.0,3093.5,3.623266]
[1732025323280,3.23188,3094.2,3093.5,6.23255]
[1732025323610,4.83547,3094.4,3093.5,6.23255]
[1732025323611,1.6038,3094.4,3094.0,3.23199]
[1732025323781,1.6038,3094.4,3094.1,3.23189]
[1732025323985,4.78316,3094.7,3094.0,3.23199]
[1732025324332,4.78316,3094.7,3092.6,0.71230718]
[1732025324333,1.5518,3094.5,3093.4,3.0]
[1732025324541,3.23181,3094.3,3093.2,4.6595]
[1732025324680,3.23164,3094.4,3093.7,3.23231]
[1732025324880,3.23177,3094.3,3093.7,3.23231]
[1732025325085,3.23177,3094.3,3093.8,3.23226]
[1732025325398,4.78337,3094.5,3093.8,3.23219]
[1732025325729,3.23139,3094.7,3094.1,3.23189]
[1732025325933,3.23139,3094.7,3094.2,3.23183]
[1732025326223,1.5555,3094.8,3094.5,3.23153]
[1732025326395,0.1417608,3095.0,3094.5,3.23153]
[1732025326616,0.1417608,3095.0,3094.5,3.23146]
[1732025326802,3.3727908,3095.0,3094.3,6.23171]
[1732025326998,3.3727908,3095.0,3093.9,1.664]
[1732025326999,3.2312,3094.9,3094.2,3.0]
[1732025327312,3.2312,3094.9,3094.3,3.23174]
[1732025327498,0.1417608,3095.0,3094.1,3.23188]
[1732025327499,0.1417608,3095.0,3094.7,3.23123]
[1732025327699,0.1417608,3095.0,3094.3,0.623188]
[1732025327930,0.1417608,3095.0,3094.9,3.23112]
[1732025328097,0.1417608,3095.0,3094.9,6.23112]
[1732025328301,0.1417608,3095.0,3094.9,6.78112]
[1732025329041,0.1417608,3095.0,3094.9,6.23112]
[1732025329741,0.1417608,3095.0,3094.4,1.6297]
[1732025329742,0.18845446,3095.0,3094.4,1.6297]
[1732025329916,0.18845446,3095.0,3094.9,3.23112]
[1732025330312,0.1417608,3095.0,3094.9,3.23112]
[1732025330526,3.23007,3096.0,3095.3,3.23068]
[1732025330704,0.04669986,3095.9,3095.4,0.03305182]
[1732025330901,3.22973,3096.3,3095.7,3.23022]
[1732025331142,0.04679016,3096.2,3095.8,0.03304876]
[1732025331347,3.22966,3096.3,3095.7,3.23026]
[1732025331564,1.5664,3096.6,3095.7,3.23026]
[1732025331565,0.04679016,3096.1,3095.7,3.0]
[1732025331848,3.22967,3096.3,3095.7,3.0]
[1732025332008,0.04681583,3096.0,3095.7,3.0]
[1732025332205,3.22908,3096.9,3095.7,3.0]
[1732025332206,3.229,3097.0,3095.7,1.6329]
[1732025332433,3.22911,3096.9,3096.1,6.45964]
[1732025332651,3.22911,3096.9,3096.1,3.22978]
[1732025332652,3.22914,3096.8,3096.1,3.22978]
[1732025332859,3.22931,3096.7,3096.1,3.22978]
[1732025333003,3.22931,3096.7,3095.9,3.23004]
[1732025333004,0.01,3097.3,3096.0,3.0]
[1732025333209,3.22974,3096.3,3095.6,3.0]
[1732025333538,0.04687598,3096.2,3095.8,3.23016]
[1732025333735,4.79798,3096.5,3095.9,3.23]
[1732025333736,1.5685,3096.5,3095.9,3.23]
[1732025333934,0.04687598,3096.1,3096.0,3.22997]
[1732025334119,3.22917,3096.8,3096.2,3.22972]
[1732025334322,1.6338,3096.9,3096.3,3.22962]
[1732025334648,3.2292,3096.8,3096.2,3.22972]
[1732025334806,4.86284,3096.9,3096.3,3.22963]
[1732025335207,4.86284,3096.9,3096.2,3.22972]
[1732025335208,1.6338,3096.9,3096.4,3.22954]
[1732025335436,1.6338,3096.9,3096.2,3.22972]
[1732025335613,1.6338,3096.9,3096.3,3.22959]
[1732025336145,1.6338,3096.9,3096.0,4.5872]
[1732025336146,1.6338,3096.9,3096.0,1.5872]
[1732025336463,1.6338,3096.9,3095.6,1.5246]
[1732025336609,3.22945,3096.5,3095.9,3.23004]
[1732025336805,3.22957,3096.4,3095.7,3.23021]
[1732025337009,3.22925,3096.7,3095.6,1.5246]
[1732025337321,6.62179,3096.8,3096.1,3.2298]
[1732025337521,0.16338,3096.8,3096.2,1.5663]
[1732025337858,3.2292,3096.8,3096.2,4.79601]